[Event "Titled Tuesday Blitz September 20 Late 2022"]
[White "Leitao, Rafael"]
[Black "Janaszak, Dawid"]
[WhiteFideId "2101246"]
[BlackFideId "1119206"]
[WhiteElo "2609"]
[BlackElo "2165"]
[Result "1-0"]
[Round "11"]
[TimeControl "180+1"]
[Date "2022.09.20"]
[WhiteClock "0:00:26"]
[BlackClock "0:00:03"]

1. c4 {[%clk 0:02:50]}  b6 {[%clk 0:02:58]} 2. d4 {[%clk 0:02:47]}  Bb7 {[%clk 0:02:58]} 3. Nf3 {[%clk 0:02:46]}  e6 {[%clk 0:02:58]} 4. g3 {[%clk 0:02:43]}  f5 {[%clk 0:02:58]} 5. Bg2 {[%clk 0:02:43]}  Nf6 {[%clk 0:02:59]} 6. O-O {[%clk 0:02:44]}  Be7 {[%clk 0:02:59]} 7. Nc3 {[%clk 0:02:43]}  O-O {[%clk 0:02:59]} 8. d5 {[%clk 0:02:41]}  Na6 {[%clk 0:02:54]} 9. Nd4 {[%clk 0:02:39]}  Nc5 {[%clk 0:02:24]} 10. b4 {[%clk 0:02:27]}  Nce4 {[%clk 0:02:23]} 11. Nxe4 {[%clk 0:02:26]}  Nxe4 {[%clk 0:02:17]} 12. Qb3 {[%clk 0:02:25]}  Bf6 {[%clk 0:02:00]} 13. Rd1 {[%clk 0:02:19]}  Qe7 {[%clk 0:01:35]} 14. Bb2 {[%clk 0:02:11]}  Kh8 {[%clk 0:01:26]} 15. Rac1 {[%clk 0:01:56]}  a5 {[%clk 0:01:17]} 16. a3 {[%clk 0:01:55]}  axb4 {[%clk 0:01:16]} 17. axb4 {[%clk 0:01:56]}  Qf7 {[%clk 0:01:00]} 18. Nb5 {[%clk 0:01:44]}  Bxb2 {[%clk 0:00:54]} 19. Qxb2 {[%clk 0:01:45]}  Rac8 {[%clk 0:00:38]} 20. Qd4 {[%clk 0:01:30]}  exd5 {[%clk 0:00:26]} 21. cxd5 {[%clk 0:01:28]}  d6 {[%clk 0:00:22]} 22. e3 {[%clk 0:01:11]}  Ba6 {[%clk 0:00:20]} 23. Nc3 {[%clk 0:01:08]}  Nxc3 {[%clk 0:00:19]} 24. Rxc3 {[%clk 0:01:08]}  Bb5 {[%clk 0:00:16]} 25. Rdc1 {[%clk 0:01:07]}  Rfe8 {[%clk 0:00:16]} 26. h4 {[%clk 0:01:03]}  h6 {[%clk 0:00:16]} 27. Bf3 {[%clk 0:01:02]}  Kh7 {[%clk 0:00:16]} 28. h5 {[%clk 0:01:02]}  Re7 {[%clk 0:00:15]} 29. Kg2 {[%clk 0:00:59]}  Ra8 {[%clk 0:00:14]} 30. Qd2 {[%clk 0:00:58]}  Ra4 {[%clk 0:00:13]} 31. Qb2 {[%clk 0:00:48]}  Qf6 {[%clk 0:00:12]} 32. Qb3 {[%clk 0:00:47]}  Ra7 {[%clk 0:00:11]} 33. Qc2 {[%clk 0:00:47]}  Ba4 {[%clk 0:00:07]} 34. Qb1 {[%clk 0:00:45]}  Bb5 {[%clk 0:00:07]} 35. Qb2 {[%clk 0:00:38]}  Qe5 {[%clk 0:00:06]} 36. Ra1 {[%clk 0:00:35]}  Rxa1 {[%clk 0:00:06]} 37. Qxa1 {[%clk 0:00:35]}  Qf6 {[%clk 0:00:05]} 38. Qc1 {[%clk 0:00:35]}  Qf7 {[%clk 0:00:04]} 39. Qc2 {[%clk 0:00:35]}  Bd7 {[%clk 0:00:04]} 40. Rxc7 {[%clk 0:00:33]}  Qe8 {[%clk 0:00:03]} 41. Ra7 {[%clk 0:00:29]}  Bb5 {[%clk 0:00:02]} 42. Rxe7 {[%clk 0:00:27]}  Qxe7 {[%clk 0:00:02]} 43. Qxf5+ {[%clk 0:00:27]}  Kh8 {[%clk 0:00:03]} 44. Be4 {[%clk 0:00:27]}  Kg8 {[%clk 0:00:03]} 45. Qh7+ {[%clk 0:00:26]}  Kf8 {[%clk 0:00:04]} 46. Qf5+ {[%clk 0:00:25]}  Ke8 {[%clk 0:00:02]} 47. Qc8+ {[%clk 0:00:25]}  Kf7 {[%clk 0:00:03]} 48. Bg6+ {[%clk 0:00:25]}  Kf6 {[%clk 0:00:03]} 49. Qf5# {[%clk 0:00:26]} 1-0


[Site "https://www.chess.com"]

[Event "Titled Tuesday Blitz September 20 Late 2022"]
[White "Lenderman, Aleksandr"]
[Black "Rasulov, Vugar"]
[WhiteFideId "2021285"]
[BlackFideId "13402390"]
[WhiteElo "2607"]
[BlackElo "2509"]
[Result "1-0"]
[Round "11"]
[TimeControl "180+1"]
[Date "2022.09.20"]
[WhiteClock "0:00:03"]
[BlackClock "0:00:05"]

1. d4 {[%clk 0:03:00]}  Nf6 {[%clk 0:03:00]} 2. c4 {[%clk 0:03:00]}  e6 {[%clk 0:03:00]} 3. Nf3 {[%clk 0:02:59]}  d5 {[%clk 0:03:00]} 4. e3 {[%clk 0:03:00]}  c5 {[%clk 0:02:58]} 5. cxd5 {[%clk 0:03:00]}  exd5 {[%clk 0:02:57]} 6. Bb5+ {[%clk 0:03:00]}  Nc6 {[%clk 0:02:57]} 7. O-O {[%clk 0:03:00]}  Bg4 {[%clk 0:02:53]} 8. h3 {[%clk 0:02:58]}  Bxf3 {[%clk 0:02:49]} 9. Qxf3 {[%clk 0:02:58]}  cxd4 {[%clk 0:02:50]} 10. exd4 {[%clk 0:02:58]}  Be7 {[%clk 0:02:50]} 11. Be3 {[%clk 0:02:49]}  O-O {[%clk 0:02:48]} 12. Bxc6 {[%clk 0:02:49]}  bxc6 {[%clk 0:02:47]} 13. Rc1 {[%clk 0:02:47]}  Qb6 {[%clk 0:02:25]} 14. Rc2 {[%clk 0:02:46]}  Ne4 {[%clk 0:02:24]} 15. Nd2 {[%clk 0:02:43]}  f5 {[%clk 0:02:23]} 16. Nxe4 {[%clk 0:01:50]}  dxe4 {[%clk 0:02:22]} 17. Qf4 {[%clk 0:01:49]}  Qb5 {[%clk 0:02:12]} 18. Qe5 {[%clk 0:01:45]}  Kf7 {[%clk 0:01:49]} 19. Rac1 {[%clk 0:01:41]}  Bf6 {[%clk 0:01:39]} 20. Qc7+ {[%clk 0:01:37]}  Kg8 {[%clk 0:01:39]} 21. Qxc6 {[%clk 0:01:37]}  Qxc6 {[%clk 0:01:34]} 22. Rxc6 {[%clk 0:01:38]}  a5 {[%clk 0:01:34]} 23. R1c5 {[%clk 0:01:33]}  g6 {[%clk 0:01:34]} 24. Rb5 {[%clk 0:01:30]}  a4 {[%clk 0:01:23]} 25. g4 {[%clk 0:01:29]}  Bg7 {[%clk 0:01:19]} 26. gxf5 {[%clk 0:01:25]}  gxf5 {[%clk 0:01:20]} 27. Rc7 {[%clk 0:01:18]}  a3 {[%clk 0:01:10]} 28. b3 {[%clk 0:01:12]}  Ra6 {[%clk 0:01:08]} 29. d5 {[%clk 0:01:02]}  f4 {[%clk 0:00:59]} 30. Bc5 {[%clk 0:01:01]}  Re8 {[%clk 0:00:49]} 31. d6 {[%clk 0:00:54]}  Rd8 {[%clk 0:00:44]} 32. d7 {[%clk 0:00:40]}  Kf7 {[%clk 0:00:43]} 33. Rb8 {[%clk 0:00:39]}  Bf6 {[%clk 0:00:34]} 34. Rxd8 {[%clk 0:00:39]}  Bxd8 {[%clk 0:00:34]} 35. Rc8 {[%clk 0:00:39]}  Rg6+ {[%clk 0:00:26]} 36. Kf1 {[%clk 0:00:38]}  Rg8 {[%clk 0:00:27]} 37. Bxa3 {[%clk 0:00:22]}  Ke6 {[%clk 0:00:27]} 38. Rc4 {[%clk 0:00:22]}  e3 {[%clk 0:00:14]} 39. Rxf4 {[%clk 0:00:21]}  Kxd7 {[%clk 0:00:11]} 40. Rd4+ {[%clk 0:00:16]}  Kc6 {[%clk 0:00:11]} 41. fxe3 {[%clk 0:00:15]}  Bb6 {[%clk 0:00:11]} 42. Rd6+ {[%clk 0:00:14]}  Kb7 {[%clk 0:00:10]} 43. Rh6 {[%clk 0:00:14]}  Bxe3 {[%clk 0:00:07]} 44. Rxh7+ {[%clk 0:00:14]}  Kc6 {[%clk 0:00:08]} 45. Ke2 {[%clk 0:00:14]}  Bb6 {[%clk 0:00:08]} 46. Kf3 {[%clk 0:00:12]}  Ra8 {[%clk 0:00:07]} 47. Be7 {[%clk 0:00:06]}  Rxa2 {[%clk 0:00:08]} 48. b4 {[%clk 0:00:06]}  Kd5 {[%clk 0:00:07]} 49. Kg4 {[%clk 0:00:06]}  Ke4 {[%clk 0:00:06]} 50. Bc5 {[%clk 0:00:05]}  Rg2+ {[%clk 0:00:06]} 51. Kh5 {[%clk 0:00:05]}  Bd8 {[%clk 0:00:07]} 52. Rd7 {[%clk 0:00:04]}  Bf6 {[%clk 0:00:06]} 53. Rf7 {[%clk 0:00:03]}  Bd8 {[%clk 0:00:02]} 54. Be7 {[%clk 0:00:03]}  Bc7 {[%clk 0:00:02]} 55. Bg5 {[%clk 0:00:03]}  Be5 {[%clk 0:00:02]} 56. h4 {[%clk 0:00:03]}  Rb2 {[%clk 0:00:02]} 57. Rb7 {[%clk 0:00:03]}  Kf5 {[%clk 0:00:02]} 58. b5 {[%clk 0:00:04]}  Rb4 {[%clk 0:00:02]} 59. Rf7+ {[%clk 0:00:04]}  Ke6 {[%clk 0:00:02]} 60. Re7+ {[%clk 0:00:04]}  Kf5 {[%clk 0:00:02]} 61. Rb7 {[%clk 0:00:05]}  Bd4 {[%clk 0:00:02]} 62. Rb8 {[%clk 0:00:04]}  Be5 {[%clk 0:00:02]} 63. Rf8+ {[%clk 0:00:04]}  Ke6 {[%clk 0:00:03]} 64. Re8+ {[%clk 0:00:05]}  Kf5 {[%clk 0:00:03]} 65. Rf8+ {[%clk 0:00:05]}  Ke6 {[%clk 0:00:03]} 66. Kg6 {[%clk 0:00:06]}  Rxb5 {[%clk 0:00:04]} 67. Re8+ {[%clk 0:00:06]}  Kd7 {[%clk 0:00:03]} 68. Re7+ {[%clk 0:00:05]}  Kd6 {[%clk 0:00:03]} 69. h5 {[%clk 0:00:05]}  Bd4 {[%clk 0:00:03]} 70. Re8 {[%clk 0:00:05]}  Rb3 {[%clk 0:00:03]} 71. Rd8+ {[%clk 0:00:04]}  Kc5 {[%clk 0:00:04]} 72. h6 {[%clk 0:00:04]}  Rg3 {[%clk 0:00:04]} 73. Rxd4 {[%clk 0:00:03]}  Kxd4 {[%clk 0:00:04]} 74. h7 {[%clk 0:00:03]}  Rh3 {[%clk 0:00:04]} 75. Bh6 {[%clk 0:00:04]}  Rg3+ {[%clk 0:00:04]} 76. Kf6 {[%clk 0:00:03]}  Rf3+ {[%clk 0:00:05]} 77. Ke6 {[%clk 0:00:03]} 1-0


[Site "https://www.chess.com"]

[Event "Titled Tuesday Blitz September 20 Late 2022"]
[White "Makaraci, Tunahan"]
[Black "Gascon Del Nogal, Jose Rafael"]
[WhiteFideId "6356559"]
[BlackFideId "3902463"]
[WhiteElo "2003"]
[BlackElo "2473"]
[Result "1-0"]
[Round "11"]
[TimeControl "180+1"]
[Date "2022.09.20"]
[WhiteClock "0:00:14"]
[BlackClock "0:00:01"]

1. e4 {[%clk 0:02:58]}  c5 {[%clk 0:02:12]} 2. Nf3 {[%clk 0:02:55]}  Nc6 {[%clk 0:02:12]} 3. c3 {[%clk 0:02:55]}  Nf6 {[%clk 0:02:12]} 4. e5 {[%clk 0:02:55]}  Nd5 {[%clk 0:02:13]} 5. d4 {[%clk 0:02:56]}  cxd4 {[%clk 0:02:13]} 6. cxd4 {[%clk 0:02:55]}  d6 {[%clk 0:02:13]} 7. Bc4 {[%clk 0:02:54]}  Nb6 {[%clk 0:02:09]} 8. Bb3 {[%clk 0:02:52]}  dxe5 {[%clk 0:02:06]} 9. d5 {[%clk 0:02:52]}  Na5 {[%clk 0:02:06]} 10. Nc3 {[%clk 0:02:51]}  Nxb3 {[%clk 0:02:05]} 11. Qxb3 {[%clk 0:02:50]}  e6 {[%clk 0:02:06]} 12. Nxe5 {[%clk 0:02:49]}  Bd6 {[%clk 0:02:06]} 13. Nf3 {[%clk 0:02:46]}  O-O {[%clk 0:01:55]} 14. O-O {[%clk 0:02:40]}  exd5 {[%clk 0:01:52]} 15. Be3 {[%clk 0:02:39]}  Be6 {[%clk 0:01:51]} 16. Nd4 {[%clk 0:02:32]}  Nc4 {[%clk 0:01:43]} 17. Rad1 {[%clk 0:02:26]}  Qh4 {[%clk 0:01:33]} 18. g3 {[%clk 0:02:19]}  Qh3 {[%clk 0:01:31]} 19. Nxe6 {[%clk 0:02:09]}  fxe6 {[%clk 0:01:30]} 20. Ne2 {[%clk 0:02:03]}  Rf5 {[%clk 0:01:08]} 21. f4 {[%clk 0:01:46]}  Rh5 {[%clk 0:00:52]} 22. Rf2 {[%clk 0:01:45]}  Nxe3 {[%clk 0:00:45]} 23. Qxe3 {[%clk 0:01:36]}  Bc7 {[%clk 0:00:44]} 24. Nd4 {[%clk 0:01:30]}  Bb6 {[%clk 0:00:44]} 25. a4 {[%clk 0:01:19]}  Re8 {[%clk 0:00:34]} 26. b4 {[%clk 0:01:18]}  e5 {[%clk 0:00:31]} 27. a5 {[%clk 0:01:08]}  Bxd4 {[%clk 0:00:22]} 28. Rxd4 {[%clk 0:01:07]}  Qd7 {[%clk 0:00:19]} 29. Rd1 {[%clk 0:01:01]}  exf4 {[%clk 0:00:18]} 30. Qxf4 {[%clk 0:01:01]}  Rhe5 {[%clk 0:00:15]} 31. h4 {[%clk 0:00:53]}  h6 {[%clk 0:00:14]} 32. Kg2 {[%clk 0:00:47]}  Re2 {[%clk 0:00:13]} 33. Rd2 {[%clk 0:00:40]}  Rxf2+ {[%clk 0:00:13]} 34. Rxf2 {[%clk 0:00:40]}  Qe6 {[%clk 0:00:13]} 35. Rd2 {[%clk 0:00:39]}  a6 {[%clk 0:00:12]} 36. Qd4 {[%clk 0:00:37]}  Rd8 {[%clk 0:00:12]} 37. Qf4 {[%clk 0:00:36]}  Rf8 {[%clk 0:00:09]} 38. Qd4 {[%clk 0:00:35]}  Rf5 {[%clk 0:00:08]} 39. Qd3 {[%clk 0:00:32]}  Qe4+ {[%clk 0:00:08]} 40. Qxe4 {[%clk 0:00:32]}  dxe4 {[%clk 0:00:09]} 41. Re2 {[%clk 0:00:32]}  Re5 {[%clk 0:00:08]} 42. Kf2 {[%clk 0:00:32]}  Kf7 {[%clk 0:00:08]} 43. Ke3 {[%clk 0:00:32]}  Ke6 {[%clk 0:00:07]} 44. Rd2 {[%clk 0:00:28]}  Rb5 {[%clk 0:00:07]} 45. Rd4 {[%clk 0:00:28]}  Kf5 {[%clk 0:00:05]} 46. Rxe4 {[%clk 0:00:27]}  Re5 {[%clk 0:00:04]} 47. g4+ {[%clk 0:00:25]}  Kf6 {[%clk 0:00:04]} 48. Kf4 {[%clk 0:00:21]}  g5+ {[%clk 0:00:04]} 49. hxg5+ {[%clk 0:00:20]}  hxg5+ {[%clk 0:00:05]} 50. Ke3 {[%clk 0:00:18]}  Rb5 {[%clk 0:00:02]} 51. Rd4 {[%clk 0:00:16]}  Re5+ {[%clk 0:00:02]} 52. Kd3 {[%clk 0:00:16]}  Rb5 {[%clk 0:00:02]} 53. Kc4 {[%clk 0:00:16]}  Ke6 {[%clk 0:00:02]} 54. Re4+ {[%clk 0:00:16]}  Kd6 {[%clk 0:00:01]} 55. Re8 {[%clk 0:00:14]} 1-0


[Site "https://www.chess.com"]

[Event "Titled Tuesday Blitz September 20 Late 2022"]
[White "Melikyan, Gnel"]
[Black "Fiorito, Joaquin"]
[WhiteFideId "54109990"]
[BlackFideId "180173"]
[WhiteElo "1772"]
[BlackElo "1758"]
[Result "1-0"]
[Round "11"]
[TimeControl "180+1"]
[Date "2022.09.20"]
[WhiteClock "0:01:48"]
[BlackClock "0:01:32"]

1. e4 {[%clk 0:02:58]}  c6 {[%clk 0:02:59]} 2. Nc3 {[%clk 0:02:51]}  d5 {[%clk 0:02:59]} 3. Nf3 {[%clk 0:02:52]}  Bg4 {[%clk 0:02:59]} 4. h3 {[%clk 0:02:52]}  Bxf3 {[%clk 0:02:59]} 5. Qxf3 {[%clk 0:02:53]}  Nf6 {[%clk 0:03:00]} 6. b3 {[%clk 0:02:49]}  e6 {[%clk 0:02:54]} 7. Bb2 {[%clk 0:02:48]}  Be7 {[%clk 0:02:49]} 8. O-O-O {[%clk 0:02:48]}  a5 {[%clk 0:02:43]} 9. a4 {[%clk 0:02:47]}  Na6 {[%clk 0:02:32]} 10. g4 {[%clk 0:02:45]}  Nb4 {[%clk 0:02:31]} 11. Kb1 {[%clk 0:02:40]}  d4 {[%clk 0:02:26]} 12. Na2 {[%clk 0:02:40]}  Nxa2 {[%clk 0:02:18]} 13. Kxa2 {[%clk 0:02:41]}  b5 {[%clk 0:02:18]} 14. g5 {[%clk 0:02:36]}  Nd7 {[%clk 0:02:17]} 15. Bxd4 {[%clk 0:02:33]}  bxa4 {[%clk 0:02:16]} 16. bxa4 {[%clk 0:02:27]}  Nc5 {[%clk 0:02:14]} 17. Qc3 {[%clk 0:02:24]}  Nd7 {[%clk 0:01:58]} 18. f4 {[%clk 0:02:17]}  Bb4 {[%clk 0:01:49]} 19. Qc4 {[%clk 0:02:08]}  O-O {[%clk 0:01:46]} 20. c3 {[%clk 0:02:07]}  Be7 {[%clk 0:01:43]} 21. Rb1 {[%clk 0:02:06]}  e5 {[%clk 0:01:37]} 22. fxe5 {[%clk 0:01:58]}  c5 {[%clk 0:01:37]} 23. Be3 {[%clk 0:01:52]}  Nxe5 {[%clk 0:01:37]} 24. Qd5 {[%clk 0:01:53]}  Qc7 {[%clk 0:01:35]} 25. Rb7 {[%clk 0:01:51]}  Qc6 {[%clk 0:01:31]} 26. Qxc6 {[%clk 0:01:48]}  Nxc6 {[%clk 0:01:32]} 27. Bb5 {[%clk 0:01:48]} 1-0


[Site "https://www.chess.com"]

[Event "Titled Tuesday Blitz September 20 Late 2022"]
[White "Mladek, Richard"]
[Black "Graif, William"]
[WhiteFideId "386588"]
[BlackFideId "2609835"]
[WhiteElo "2263"]
[BlackElo "1942"]
[Result "1-0"]
[Round "11"]
[TimeControl "180+1"]
[Date "2022.09.20"]
[WhiteClock "0:01:30"]
[BlackClock "0:00:20"]

1. e4 {[%clk 0:03:00]}  e5 {[%clk 0:02:57]} 2. f4 {[%clk 0:02:42]}  d5 {[%clk 0:02:55]} 3. exd5 {[%clk 0:02:42]}  c6 {[%clk 0:02:55]} 4. Nc3 {[%clk 0:02:38]}  cxd5 {[%clk 0:02:22]} 5. fxe5 {[%clk 0:02:34]}  d4 {[%clk 0:02:09]} 6. Ne4 {[%clk 0:02:33]}  Qd5 {[%clk 0:01:45]} 7. Bd3 {[%clk 0:02:31]}  Bf5 {[%clk 0:01:37]} 8. Qe2 {[%clk 0:02:20]}  Nc6 {[%clk 0:01:25]} 9. Nf3 {[%clk 0:02:04]}  Bg6 {[%clk 0:00:42]} 10. Nd6+ {[%clk 0:01:42]}  Bxd6 {[%clk 0:00:34]} 11. exd6+ {[%clk 0:01:42]}  Kd7 {[%clk 0:00:35]} 12. O-O {[%clk 0:01:38]}  Nf6 {[%clk 0:00:29]} 13. Bc4 {[%clk 0:01:35]}  Qxd6 {[%clk 0:00:27]} 14. d3 {[%clk 0:01:35]}  Rae8 {[%clk 0:00:26]} 15. Qf2 {[%clk 0:01:35]}  Ng4 {[%clk 0:00:20]} 16. Qh4 {[%clk 0:01:35]}  Ne3 {[%clk 0:00:19]} 17. Bxe3 {[%clk 0:01:35]}  dxe3 {[%clk 0:00:18]} 18. Rae1 {[%clk 0:01:32]}  Kc8 {[%clk 0:00:15]} 19. Re2 {[%clk 0:01:25]}  Re7 {[%clk 0:00:14]} 20. Rfe1 {[%clk 0:01:25]}  Rhe8 {[%clk 0:00:14]} 21. a3 {[%clk 0:01:26]}  f5 {[%clk 0:00:12]} 22. c3 {[%clk 0:01:17]}  f4 {[%clk 0:00:12]} 23. Qg4+ {[%clk 0:01:17]}  Kb8 {[%clk 0:00:12]} 24. Nh4 {[%clk 0:01:17]}  Bxd3 {[%clk 0:00:11]} 25. Bxd3 {[%clk 0:01:18]}  Qxd3 {[%clk 0:00:11]} 26. Qxf4+ {[%clk 0:01:18]}  Ka8 {[%clk 0:00:11]} 27. Nf5 {[%clk 0:01:18]}  Re4 {[%clk 0:00:10]} 28. Qg3 {[%clk 0:01:15]}  g6 {[%clk 0:00:08]} 29. Nd6 {[%clk 0:01:16]}  R4e6 {[%clk 0:00:06]} 30. Nxe8 {[%clk 0:01:15]}  Rxe8 {[%clk 0:00:07]} 31. Rxe3 {[%clk 0:01:13]}  Rxe3 {[%clk 0:00:06]} 32. Qxe3 {[%clk 0:01:14]}  Qd8 {[%clk 0:00:06]} 33. Qe8 {[%clk 0:01:13]}  Kb8 {[%clk 0:00:06]} 34. Qxd8+ {[%clk 0:01:13]}  Nxd8 {[%clk 0:00:07]} 35. Re8 {[%clk 0:01:14]}  Kc7 {[%clk 0:00:07]} 36. Re7+ {[%clk 0:01:14]}  Kc8 {[%clk 0:00:07]} 37. Rxh7 {[%clk 0:01:15]}  a6 {[%clk 0:00:07]} 38. Rh8 {[%clk 0:01:16]}  Kd7 {[%clk 0:00:07]} 39. Rxd8+ {[%clk 0:01:17]}  Kxd8 {[%clk 0:00:07]} 40. Kf2 {[%clk 0:01:17]}  Ke7 {[%clk 0:00:08]} 41. Ke3 {[%clk 0:01:18]}  Ke6 {[%clk 0:00:09]} 42. Kd4 {[%clk 0:01:19]}  Kd6 {[%clk 0:00:09]} 43. g4 {[%clk 0:01:19]}  g5 {[%clk 0:00:09]} 44. c4 {[%clk 0:01:19]}  Ke6 {[%clk 0:00:09]} 45. b4 {[%clk 0:01:18]}  Kd6 {[%clk 0:00:09]} 46. c5+ {[%clk 0:01:18]}  Ke6 {[%clk 0:00:09]} 47. a4 {[%clk 0:01:18]}  Kf6 {[%clk 0:00:08]} 48. b5 {[%clk 0:01:18]}  axb5 {[%clk 0:00:08]} 49. axb5 {[%clk 0:01:19]}  Ke6 {[%clk 0:00:09]} 50. Ke4 {[%clk 0:01:19]}  Kf6 {[%clk 0:00:09]} 51. c6 {[%clk 0:01:19]}  bxc6 {[%clk 0:00:09]} 52. bxc6 {[%clk 0:01:20]}  Ke7 {[%clk 0:00:10]} 53. c7 {[%clk 0:01:21]}  Kd7 {[%clk 0:00:10]} 54. c8=Q+ {[%clk 0:01:22]}  Kxc8 {[%clk 0:00:10]} 55. Kf5 {[%clk 0:01:23]}  Kd7 {[%clk 0:00:11]} 56. Kxg5 {[%clk 0:01:23]}  Ke7 {[%clk 0:00:12]} 57. Kh6 {[%clk 0:01:24]}  Kf7 {[%clk 0:00:13]} 58. Kh7 {[%clk 0:01:23]}  Kf6 {[%clk 0:00:13]} 59. h4 {[%clk 0:01:24]}  Ke5 {[%clk 0:00:14]} 60. g5 {[%clk 0:01:25]}  Kf5 {[%clk 0:00:15]} 61. g6 {[%clk 0:01:25]}  Kg4 {[%clk 0:00:15]} 62. g7 {[%clk 0:01:26]}  Kh3 {[%clk 0:00:16]} 63. g8=Q {[%clk 0:01:26]}  Kh2 {[%clk 0:00:16]} 64. Kg7 {[%clk 0:01:26]}  Kh1 {[%clk 0:00:17]} 65. Kf7 {[%clk 0:01:26]}  Kh2 {[%clk 0:00:18]} 66. h5 {[%clk 0:01:27]}  Kh3 {[%clk 0:00:18]} 67. h6 {[%clk 0:01:28]}  Kh2 {[%clk 0:00:19]} 68. h7 {[%clk 0:01:29]}  Kh1 {[%clk 0:00:20]} 69. h8=Q# {[%clk 0:01:30]} 1-0


[Site "https://www.chess.com"]

[Event "Titled Tuesday Blitz September 20 Late 2022"]
[White "Moral Garcia, Serafin"]
[Black "Gomez Ledo, Roberto Carlos"]
[WhiteFideId "2201925"]
[BlackFideId "3507076"]
[WhiteElo "2259"]
[BlackElo "2379"]
[Result "0-1"]
[Round "11"]
[TimeControl "180+1"]
[Date "2022.09.20"]
[WhiteClock "0:01:06"]
[BlackClock "0:01:49"]

1. e4 {[%clk 0:01:30]}  e5 {[%clk 0:02:59]} 2. Nf3 {[%clk 0:01:31]}  Nc6 {[%clk 0:02:59]} 3. Bb5 {[%clk 0:01:31]}  a6 {[%clk 0:02:58]} 4. Bxc6 {[%clk 0:01:31]}  dxc6 {[%clk 0:02:58]} 5. O-O {[%clk 0:01:32]}  Ne7 {[%clk 0:02:58]} 6. Nxe5 {[%clk 0:01:29]}  Qd4 {[%clk 0:02:58]} 7. Qh5 {[%clk 0:01:29]}  g6 {[%clk 0:02:58]} 8. Nf3 {[%clk 0:01:29]}  Qxe4 {[%clk 0:02:56]} 9. Qa5 {[%clk 0:01:25]}  Bg4 {[%clk 0:02:48]} 10. Re1 {[%clk 0:01:22]}  Qf5 {[%clk 0:02:47]} 11. Qc3 {[%clk 0:01:16]}  Bxf3 {[%clk 0:02:31]} 12. gxf3 {[%clk 0:01:11]}  Rg8 {[%clk 0:02:21]} 13. Na3 {[%clk 0:01:08]}  O-O-O {[%clk 0:02:19]} 14. Nc4 {[%clk 0:01:08]}  Nd5 {[%clk 0:02:17]} 15. Qb3 {[%clk 0:01:07]}  Nf4 {[%clk 0:02:07]} 16. Kh1 {[%clk 0:01:07]}  Qh3 {[%clk 0:01:52]} 17. Rg1 {[%clk 0:01:06]}  Rd3 {[%clk 0:01:49]} 0-1


[Site "https://www.chess.com"]

[Event "Titled Tuesday Blitz September 20 Late 2022"]
[White "Naroditsky, Daniel"]
[Black "Muradli, Mahammad"]
[WhiteFideId "2026961"]
[BlackFideId "13409301"]
[WhiteElo "3118"]
[BlackElo "2908"]
[Result "1/2-1/2"]
[Round "11"]
[TimeControl "180+1"]
[Date "2022.09.20"]
[WhiteClock "0:00:08"]
[BlackClock "0:00:04"]

1. e4 {[%clk 0:03:00]}  c5 {[%clk 0:02:59]} 2. Nf3 {[%clk 0:03:01]}  d6 {[%clk 0:03:00]} 3. Bb5+ {[%clk 0:03:02]}  Bd7 {[%clk 0:03:00]} 4. c4 {[%clk 0:03:02]}  Nf6 {[%clk 0:02:59]} 5. Nc3 {[%clk 0:03:03]}  Nc6 {[%clk 0:03:00]} 6. O-O {[%clk 0:03:03]}  g6 {[%clk 0:02:59]} 7. d4 {[%clk 0:03:02]}  cxd4 {[%clk 0:03:00]} 8. Nxd4 {[%clk 0:03:02]}  Bg7 {[%clk 0:02:59]} 9. Bxc6 {[%clk 0:03:01]}  bxc6 {[%clk 0:02:54]} 10. c5 {[%clk 0:02:59]}  O-O {[%clk 0:02:52]} 11. cxd6 {[%clk 0:02:53]}  exd6 {[%clk 0:02:53]} 12. Bf4 {[%clk 0:02:53]}  Re8 {[%clk 0:02:41]} 13. Re1 {[%clk 0:02:49]}  d5 {[%clk 0:02:26]} 14. exd5 {[%clk 0:02:47]}  Nxd5 {[%clk 0:02:21]} 15. Nxd5 {[%clk 0:02:41]}  cxd5 {[%clk 0:02:22]} 16. Qd2 {[%clk 0:02:24]}  Qb6 {[%clk 0:02:02]} 17. Be3 {[%clk 0:02:21]}  Qa6 {[%clk 0:02:01]} 18. Nb3 {[%clk 0:01:59]}  Bb5 {[%clk 0:01:21]} 19. Bd4 {[%clk 0:01:35]}  Rxe1+ {[%clk 0:01:15]} 20. Rxe1 {[%clk 0:01:36]}  Qxa2 {[%clk 0:00:47]} 21. Bxg7 {[%clk 0:01:33]}  Kxg7 {[%clk 0:00:48]} 22. Qc3+ {[%clk 0:00:56]}  Kg8 {[%clk 0:00:47]} 23. Ra1 {[%clk 0:00:55]}  d4 {[%clk 0:00:48]} 24. Qb4 {[%clk 0:00:34]}  Qxb2 {[%clk 0:00:27]} 25. Qxb5 {[%clk 0:00:35]}  a5 {[%clk 0:00:09]} 26. Rd1 {[%clk 0:00:20]}  a4 {[%clk 0:00:09]} 27. Nxd4 {[%clk 0:00:19]}  a3 {[%clk 0:00:06]} 28. h4 {[%clk 0:00:08]}  Rd8 {[%clk 0:00:05]} 29. Qxb2 {[%clk 0:00:02]}  axb2 {[%clk 0:00:06]} 30. Rb1 {[%clk 0:00:02]}  Rxd4 {[%clk 0:00:06]} 31. Rxb2 {[%clk 0:00:03]}  Rxh4 {[%clk 0:00:07]} 32. Rb8+ {[%clk 0:00:03]}  Kg7 {[%clk 0:00:07]} 33. g3 {[%clk 0:00:04]}  Rd4 {[%clk 0:00:07]} 34. Kg2 {[%clk 0:00:05]}  Rd6 {[%clk 0:00:08]} 35. Rb7 {[%clk 0:00:05]}  Re6 {[%clk 0:00:08]} 36. Rb5 {[%clk 0:00:05]}  h5 {[%clk 0:00:09]} 37. Rc5 {[%clk 0:00:06]}  Rf6 {[%clk 0:00:09]} 38. Rb5 {[%clk 0:00:07]}  Re6 {[%clk 0:00:07]} 39. Rc5 {[%clk 0:00:07]}  Kf6 {[%clk 0:00:08]} 40. Rb5 {[%clk 0:00:08]}  Re5 {[%clk 0:00:09]} 41. Rb7 {[%clk 0:00:08]}  Re7 {[%clk 0:00:08]} 42. Rb5 {[%clk 0:00:09]}  g5 {[%clk 0:00:09]} 43. Rb6+ {[%clk 0:00:09]}  Re6 {[%clk 0:00:09]} 44. Rb4 {[%clk 0:00:10]}  Kg6 {[%clk 0:00:09]} 45. Rb5 {[%clk 0:00:10]}  f6 {[%clk 0:00:09]} 46. Rc5 {[%clk 0:00:10]}  Re5 {[%clk 0:00:09]} 47. Rc8 {[%clk 0:00:10]}  Kf5 {[%clk 0:00:10]} 48. Rc4 {[%clk 0:00:10]}  Rd5 {[%clk 0:00:08]} 49. Rb4 {[%clk 0:00:10]}  Rc5 {[%clk 0:00:08]} 50. Rd4 {[%clk 0:00:10]}  g4 {[%clk 0:00:07]} 51. Rd8 {[%clk 0:00:10]}  Rc7 {[%clk 0:00:06]} 52. Rh8 {[%clk 0:00:10]}  Kg6 {[%clk 0:00:06]} 53. Rg8+ {[%clk 0:00:10]}  Rg7 {[%clk 0:00:07]} 54. Ra8 {[%clk 0:00:11]}  Kg5 {[%clk 0:00:07]} 55. Ra5+ {[%clk 0:00:11]}  f5 {[%clk 0:00:08]} 56. f4+ {[%clk 0:00:06]}  gxf3+ {[%clk 0:00:05]} 57. Kxf3 {[%clk 0:00:07]}  Rb7 {[%clk 0:00:06]} 58. Ra3 {[%clk 0:00:07]}  Rb4 {[%clk 0:00:06]} 59. Rc3 {[%clk 0:00:07]}  Ra4 {[%clk 0:00:05]} 60. Rb3 {[%clk 0:00:08]}  Rc4 {[%clk 0:00:03]} 61. Ra3 {[%clk 0:00:08]}  h4 {[%clk 0:00:03]} 62. gxh4+ {[%clk 0:00:08]}  Rxh4 {[%clk 0:00:04]} 1/2-1/2


[Site "https://www.chess.com"]